[Event "Titled Tuesday Blitz April 12 Late 2022"]
[White "Leitao, Rafael"]
[Black "Martinez Reyes, Pedro Ramon"]
[WhiteFideId "2101246"]
[BlackFideId "3901807"]
[WhiteElo "2609"]
[BlackElo "2410"]
[Result "0-1"]
[Round "06"]
[TimeControl "180+1"]
[Date "2022.04.12"]
[WhiteClock "0:00:04"]
[BlackClock "0:00:07"]

1. c4 {[%clk 0:03:00]}  Nf6 {[%clk 0:02:59]} 2. Nc3 {[%clk 0:02:59]}  e5 {[%clk 0:02:54]} 3. Nf3 {[%clk 0:02:58]}  Nc6 {[%clk 0:02:54]} 4. e4 {[%clk 0:02:58]}  Bb4 {[%clk 0:02:53]} 5. d3 {[%clk 0:02:57]}  O-O {[%clk 0:02:52]} 6. Bg5 {[%clk 0:02:48]}  h6 {[%clk 0:02:50]} 7. Bh4 {[%clk 0:02:46]}  Bxc3+ {[%clk 0:02:50]} 8. bxc3 {[%clk 0:02:46]}  a6 {[%clk 0:02:49]} 9. a4 {[%clk 0:02:41]}  d6 {[%clk 0:02:47]} 10. Be2 {[%clk 0:02:39]}  b6 {[%clk 0:02:34]} 11. Qd2 {[%clk 0:02:36]}  Qe7 {[%clk 0:02:28]} 12. Rg1 {[%clk 0:02:28]}  Qe6 {[%clk 0:02:21]} 13. g4 {[%clk 0:02:23]}  Nh7 {[%clk 0:02:00]} 14. g5 {[%clk 0:02:08]}  h5 {[%clk 0:01:59]} 15. Bg3 {[%clk 0:01:55]}  g6 {[%clk 0:01:58]} 16. h4 {[%clk 0:01:53]}  Bd7 {[%clk 0:01:55]} 17. Kf1 {[%clk 0:01:27]}  Qh3+ {[%clk 0:01:47]} 18. Rg2 {[%clk 0:01:17]}  Qh1+ {[%clk 0:01:31]} 19. Rg1 {[%clk 0:01:17]}  Qh3+ {[%clk 0:01:29]} 20. Rg2 {[%clk 0:01:13]}  b5 {[%clk 0:01:18]} 21. Ng1 {[%clk 0:01:05]}  Qe6 {[%clk 0:01:16]} 22. d4 {[%clk 0:00:59]}  exd4 {[%clk 0:01:09]} 23. cxd4 {[%clk 0:00:59]}  Qxe4 {[%clk 0:01:01]} 24. Bf3 {[%clk 0:00:51]}  Qf5 {[%clk 0:00:55]} 25. Rc1 {[%clk 0:00:35]}  bxa4 {[%clk 0:00:52]} 26. Bxc6 {[%clk 0:00:19]}  Bxc6 {[%clk 0:00:51]} 27. d5 {[%clk 0:00:20]}  Bd7 {[%clk 0:00:47]} 28. Ne2 {[%clk 0:00:20]}  Rab8 {[%clk 0:00:44]} 29. Nd4 {[%clk 0:00:20]}  Qe4 {[%clk 0:00:44]} 30. f3 {[%clk 0:00:20]}  Qe8 {[%clk 0:00:37]} 31. Re2 {[%clk 0:00:20]}  Qc8 {[%clk 0:00:34]} 32. Re3 {[%clk 0:00:19]}  Re8 {[%clk 0:00:35]} 33. Rce1 {[%clk 0:00:19]}  a3 {[%clk 0:00:32]} 34. Rxa3 {[%clk 0:00:18]}  Bh3+ {[%clk 0:00:29]} 35. Kf2 {[%clk 0:00:18]}  Rxe1 {[%clk 0:00:29]} 36. Qxe1 {[%clk 0:00:18]}  Rb2+ {[%clk 0:00:29]} 37. Kg1 {[%clk 0:00:15]}  Bg2 {[%clk 0:00:20]} 38. Re3 {[%clk 0:00:12]}  Qh3 {[%clk 0:00:19]} 39. Re8+ {[%clk 0:00:12]}  Nf8 {[%clk 0:00:19]} 40. Re2 {[%clk 0:00:07]}  Qh1+ {[%clk 0:00:11]} 41. Kf2 {[%clk 0:00:07]}  Rxe2+ {[%clk 0:00:09]} 42. Qxe2 {[%clk 0:00:06]}  Bh3 {[%clk 0:00:10]} 43. Ke3 {[%clk 0:00:06]}  Bd7 {[%clk 0:00:09]} 44. Kf2 {[%clk 0:00:05]}  a5 {[%clk 0:00:08]} 45. Nc6 {[%clk 0:00:05]}  Bxc6 {[%clk 0:00:08]} 46. dxc6 {[%clk 0:00:05]}  Ne6 {[%clk 0:00:09]} 47. c5 {[%clk 0:00:05]}  dxc5 {[%clk 0:00:08]} 48. Qb2 {[%clk 0:00:06]}  Qd1 {[%clk 0:00:08]} 49. Qb8+ {[%clk 0:00:05]}  Kh7 {[%clk 0:00:07]} 50. Be5 {[%clk 0:00:06]}  Qd2+ {[%clk 0:00:08]} 51. Kg3 {[%clk 0:00:06]}  f6 {[%clk 0:00:08]} 52. Bxf6 {[%clk 0:00:05]}  Qf4+ {[%clk 0:00:08]} 53. Kg2 {[%clk 0:00:05]}  Qd2+ {[%clk 0:00:07]} 54. Kg3 {[%clk 0:00:05]}  Qe1+ {[%clk 0:00:07]} 55. Kg2 {[%clk 0:00:06]}  Nf4+ {[%clk 0:00:07]} 56. Kh2 {[%clk 0:00:04]}  Qf2+ {[%clk 0:00:07]} 0-1


[Site "https://www.chess.com"]

[Event "Titled Tuesday Blitz April 12 Late 2022"]
[White "Maksimovic, Bojan"]
[Black "Shimanov, Aleksandr"]
[WhiteFideId "14408120"]
[BlackFideId "4198603"]
[WhiteElo "2448"]
[BlackElo "2636"]
[Result "0-1"]
[Round "06"]
[TimeControl "180+1"]
[Date "2022.04.12"]
[WhiteClock "0:00:01"]
[BlackClock "0:01:00"]

1. d4 {[%clk 0:03:00]}  Nf6 {[%clk 0:02:59]} 2. c4 {[%clk 0:03:00]}  g6 {[%clk 0:02:58]} 3. Nc3 {[%clk 0:02:59]}  Bg7 {[%clk 0:02:58]} 4. e4 {[%clk 0:02:59]}  O-O {[%clk 0:02:58]} 5. Nf3 {[%clk 0:02:59]}  d6 {[%clk 0:02:58]} 6. Be2 {[%clk 0:02:59]}  e5 {[%clk 0:02:58]} 7. d5 {[%clk 0:03:00]}  a5 {[%clk 0:02:57]} 8. Be3 {[%clk 0:02:57]}  Ng4 {[%clk 0:02:55]} 9. Bg5 {[%clk 0:02:57]}  f6 {[%clk 0:02:55]} 10. Bh4 {[%clk 0:02:57]}  Na6 {[%clk 0:02:51]} 11. Nd2 {[%clk 0:02:56]}  h5 {[%clk 0:02:40]} 12. h3 {[%clk 0:02:44]}  Nh6 {[%clk 0:02:40]} 13. f3 {[%clk 0:02:40]}  Nf7 {[%clk 0:02:38]} 14. Qc2 {[%clk 0:02:32]}  Bh6 {[%clk 0:02:37]} 15. O-O-O {[%clk 0:02:30]}  Kg7 {[%clk 0:02:30]} 16. Kb1 {[%clk 0:02:29]}  Bd7 {[%clk 0:02:27]} 17. Bf2 {[%clk 0:02:25]}  a4 {[%clk 0:02:16]} 18. a3 {[%clk 0:02:17]}  Nc5 {[%clk 0:02:11]} 19. Ka2 {[%clk 0:02:01]}  c6 {[%clk 0:02:02]} 20. h4 {[%clk 0:01:56]}  Qa5 {[%clk 0:02:00]} 21. Ndb1 {[%clk 0:01:32]}  Nb3 {[%clk 0:01:51]} 22. g4 {[%clk 0:00:44]}  hxg4 {[%clk 0:01:51]} 23. fxg4 {[%clk 0:00:45]}  Bf4 {[%clk 0:01:51]} 24. g5 {[%clk 0:00:44]}  fxg5 {[%clk 0:01:49]} 25. hxg5 {[%clk 0:00:45]}  Nd4 {[%clk 0:01:41]} 26. Rxd4 {[%clk 0:00:19]}  exd4 {[%clk 0:01:42]} 27. Bxd4+ {[%clk 0:00:18]}  Be5 {[%clk 0:01:41]} 28. Qd3 {[%clk 0:00:19]}  c5 {[%clk 0:01:40]} 29. Bxe5+ {[%clk 0:00:13]}  Nxe5 {[%clk 0:01:41]} 30. Qg3 {[%clk 0:00:14]}  Rh8 {[%clk 0:01:41]} 31. Rf1 {[%clk 0:00:09]}  Raf8 {[%clk 0:01:40]} 32. Rf6 {[%clk 0:00:10]}  Rxf6 {[%clk 0:01:39]} 33. gxf6+ {[%clk 0:00:10]}  Kxf6 {[%clk 0:01:40]} 34. Nd2 {[%clk 0:00:11]}  Qd8 {[%clk 0:01:23]} 35. Nf3 {[%clk 0:00:11]}  Qe7 {[%clk 0:01:19]} 36. Qg5+ {[%clk 0:00:07]}  Kf7 {[%clk 0:01:19]} 37. Qf4+ {[%clk 0:00:03]}  Kg7 {[%clk 0:01:19]} 38. Ng5 {[%clk 0:00:02]}  Qf6 {[%clk 0:01:12]} 39. Qg3 {[%clk 0:00:02]}  Rh1 {[%clk 0:01:10]} 40. Bf3 {[%clk 0:00:02]}  Rf1 {[%clk 0:01:07]} 41. Be2 {[%clk 0:00:02]}  Rf2 {[%clk 0:01:05]} 42. Bd1 {[%clk 0:00:02]}  Nxc4 {[%clk 0:01:04]} 43. Nxa4 {[%clk 0:00:02]}  Bxa4 {[%clk 0:01:02]} 44. Ne6+ {[%clk 0:00:01]}  Kg8 {[%clk 0:01:00]} 0-1


[Site "https://www.chess.com"]

[Event "Titled Tuesday Blitz April 12 Late 2022"]
[White "Melikhov, Evgeny V."]
[Black "Soysal, Serkan"]
[WhiteFideId "4122046"]
[BlackFideId "6349250"]
[WhiteElo "1931"]
[BlackElo "2440"]
[Result "0-1"]
[Round "06"]
[TimeControl "180+1"]
[Date "2022.04.13"]
[WhiteClock "0:00:17"]
[BlackClock "0:00:47"]

1. d4 {[%clk 0:01:50]}  d5 {[%clk 0:02:56]} 2. c4 {[%clk 0:01:49]}  c6 {[%clk 0:02:56]} 3. Nc3 {[%clk 0:01:48]}  Nf6 {[%clk 0:02:56]} 4. e3 {[%clk 0:01:47]}  e6 {[%clk 0:02:55]} 5. Nf3 {[%clk 0:01:47]}  Nbd7 {[%clk 0:02:56]} 6. Bd3 {[%clk 0:01:46]}  dxc4 {[%clk 0:02:55]} 7. Bxc4 {[%clk 0:01:46]}  b5 {[%clk 0:02:56]} 8. Bd3 {[%clk 0:01:47]}  Bb7 {[%clk 0:02:56]} 9. O-O {[%clk 0:01:47]}  Bd6 {[%clk 0:02:53]} 10. e4 {[%clk 0:01:46]}  e5 {[%clk 0:02:53]} 11. Bg5 {[%clk 0:01:46]}  h6 {[%clk 0:02:52]} 12. Bh4 {[%clk 0:01:45]}  O-O {[%clk 0:02:49]} 13. d5 {[%clk 0:01:44]}  b4 {[%clk 0:02:45]} 14. dxc6 {[%clk 0:01:41]}  Bxc6 {[%clk 0:02:45]} 15. Nd5 {[%clk 0:01:39]}  Bxd5 {[%clk 0:02:41]} 16. exd5 {[%clk 0:01:39]}  Qb6 {[%clk 0:02:18]} 17. Bxf6 {[%clk 0:01:30]}  Nxf6 {[%clk 0:02:17]} 18. Re1 {[%clk 0:01:12]}  Rfe8 {[%clk 0:02:08]} 19. Rc1 {[%clk 0:00:59]}  e4 {[%clk 0:01:56]} 20. Rc6 {[%clk 0:00:58]}  Qd8 {[%clk 0:01:54]} 21. Nd4 {[%clk 0:00:47]}  exd3 {[%clk 0:01:52]} 22. Rxe8+ {[%clk 0:00:47]}  Nxe8 {[%clk 0:01:53]} 23. Qxd3 {[%clk 0:00:43]}  Be5 {[%clk 0:01:20]} 24. Nf5 {[%clk 0:00:40]}  Qg5 {[%clk 0:01:04]} 25. g3 {[%clk 0:00:32]}  g6 {[%clk 0:01:01]} 26. d6 {[%clk 0:00:20]}  Qxf5 {[%clk 0:00:49]} 27. Qxf5 {[%clk 0:00:19]}  gxf5 {[%clk 0:00:50]} 28. d7 {[%clk 0:00:19]}  Nc7 {[%clk 0:00:46]} 29. f4 {[%clk 0:00:18]}  Bd4+ {[%clk 0:00:45]} 30. Kg2 {[%clk 0:00:19]}  Bb6 {[%clk 0:00:46]} 31. Rxh6 {[%clk 0:00:17]}  Rd8 {[%clk 0:00:46]} 32. Rd6 {[%clk 0:00:17]}  Kf8 {[%clk 0:00:46]} 33. h4 {[%clk 0:00:17]}  Ke7 {[%clk 0:00:47]} 0-1


[Site "https://www.chess.com"]

[Event "Titled Tuesday Blitz April 12 Late 2022"]
[White "Mikhailov, Viacheslav"]
[Black "Ambartsumova, Karina"]
[WhiteFideId "4187369"]
[BlackFideId "4166299"]
[WhiteElo "2381"]
[BlackElo "2262"]
[Result "1-0"]
[Round "06"]
[TimeControl "180+1"]
[Date "2022.04.12"]
[WhiteClock "0:01:09"]
[BlackClock "0:00:40"]

1. c4 {[%clk 0:02:59]}  e6 {[%clk 0:02:57]} 2. g3 {[%clk 0:02:59]}  Nf6 {[%clk 0:02:57]} 3. Bg2 {[%clk 0:02:59]}  d5 {[%clk 0:02:58]} 4. Nf3 {[%clk 0:03:00]}  dxc4 {[%clk 0:02:58]} 5. O-O {[%clk 0:02:59]}  c6 {[%clk 0:02:55]} 6. a4 {[%clk 0:02:59]}  a5 {[%clk 0:02:51]} 7. Na3 {[%clk 0:02:59]}  Bxa3 {[%clk 0:02:50]} 8. Rxa3 {[%clk 0:03:00]}  O-O {[%clk 0:02:44]} 9. Qc2 {[%clk 0:02:59]}  Qd5 {[%clk 0:02:32]} 10. d3 {[%clk 0:02:51]}  cxd3 {[%clk 0:02:26]} 11. Rxd3 {[%clk 0:02:52]}  Qh5 {[%clk 0:02:25]} 12. Bg5 {[%clk 0:02:40]}  e5 {[%clk 0:02:11]} 13. Bxf6 {[%clk 0:02:30]}  gxf6 {[%clk 0:02:11]} 14. Nh4 {[%clk 0:02:28]}  Be6 {[%clk 0:02:07]} 15. Rfd1 {[%clk 0:02:11]}  Na6 {[%clk 0:02:07]} 16. Rd6 {[%clk 0:01:58]}  Nb4 {[%clk 0:02:03]} 17. Qd2 {[%clk 0:01:58]}  Qg5 {[%clk 0:01:58]} 18. e3 {[%clk 0:01:57]}  Bb3 {[%clk 0:01:50]} 19. Rc1 {[%clk 0:01:45]}  Be6 {[%clk 0:01:34]} 20. Rc5 {[%clk 0:01:37]}  Rfe8 {[%clk 0:01:07]} 21. Be4 {[%clk 0:01:21]}  f5 {[%clk 0:01:00]} 22. Rxe5 {[%clk 0:01:15]}  Qf6 {[%clk 0:01:00]} 23. Rxf5 {[%clk 0:01:13]}  Qe7 {[%clk 0:00:54]} 24. Rh5 {[%clk 0:01:12]}  Red8 {[%clk 0:00:50]} 25. Bxh7+ {[%clk 0:01:10]}  Kg7 {[%clk 0:00:44]} 26. e4 {[%clk 0:01:10]}  Rxd6 {[%clk 0:00:41]} 27. Qh6+ {[%clk 0:01:10]}  Kh8 {[%clk 0:00:40]} 28. Bg8+ {[%clk 0:01:09]}  Kxg8 {[%clk 0:00:40]} 29. Qh8# {[%clk 0:01:09]} 1-0


[Site "https://www.chess.com"]

[Event "Titled Tuesday Blitz April 12 Late 2022"]
[White "Nakamura, Hikaru"]
[Black "Lashkin, Jegor"]
[WhiteFideId "2016192"]
[BlackFideId "13907808"]
[WhiteElo "2850"]
[BlackElo "2368"]
[Result "1-0"]
[Round "06"]
[TimeControl "180+1"]
[Date "2022.04.12"]
[WhiteClock "0:01:55"]
[BlackClock "0:00:05"]

1. Nf3 {[%clk 0:03:00]}  d5 {[%clk 0:02:59]} 2. b3 {[%clk 0:03:01]}  Nf6 {[%clk 0:02:56]} 3. Bb2 {[%clk 0:03:00]}  c5 {[%clk 0:02:56]} 4. e3 {[%clk 0:03:00]}  g6 {[%clk 0:02:55]} 5. Bxf6 {[%clk 0:03:00]}  exf6 {[%clk 0:02:55]} 6. c3 {[%clk 0:03:00]}  f5 {[%clk 0:02:45]} 7. d4 {[%clk 0:03:00]}  Qc7 {[%clk 0:02:26]} 8. dxc5 {[%clk 0:02:57]}  Qxc5 {[%clk 0:02:24]} 9. g3 {[%clk 0:02:58]}  Bg7 {[%clk 0:02:23]} 10. Qd2 {[%clk 0:02:58]}  O-O {[%clk 0:02:24]} 11. Bg2 {[%clk 0:02:58]}  Nc6 {[%clk 0:02:24]} 12. O-O {[%clk 0:02:58]}  Rd8 {[%clk 0:02:19]} 13. Nd4 {[%clk 0:02:57]}  Ne5 {[%clk 0:02:16]} 14. a4 {[%clk 0:02:56]}  Bd7 {[%clk 0:02:14]} 15. Rc1 {[%clk 0:02:56]}  Rac8 {[%clk 0:02:13]} 16. Qe2 {[%clk 0:02:56]}  Be8 {[%clk 0:02:11]} 17. Nd2 {[%clk 0:02:56]}  Bf6 {[%clk 0:02:06]} 18. Rc2 {[%clk 0:02:53]}  Qe7 {[%clk 0:01:58]} 19. Qd1 {[%clk 0:02:51]}  a6 {[%clk 0:01:55]} 20. N2f3 {[%clk 0:02:49]}  Nc6 {[%clk 0:01:52]} 21. Ne2 {[%clk 0:02:47]}  Kg7 {[%clk 0:01:45]} 22. Nfd4 {[%clk 0:02:46]}  Ne5 {[%clk 0:01:45]} 23. Nf4 {[%clk 0:02:46]}  Bc6 {[%clk 0:01:46]} 24. Rd2 {[%clk 0:02:45]}  Kg8 {[%clk 0:01:31]} 25. Qc2 {[%clk 0:02:42]}  Qc5 {[%clk 0:01:29]} 26. Rad1 {[%clk 0:02:42]}  Rd7 {[%clk 0:01:23]} 27. b4 {[%clk 0:02:31]}  Qb6 {[%clk 0:01:12]} 28. b5 {[%clk 0:02:25]}  axb5 {[%clk 0:01:12]} 29. axb5 {[%clk 0:02:25]}  Bxb5 {[%clk 0:01:11]} 30. Nxd5 {[%clk 0:02:25]}  Rxd5 {[%clk 0:01:04]} 31. Bxd5 {[%clk 0:02:26]}  Bc4 {[%clk 0:00:51]} 32. Bg2 {[%clk 0:02:21]}  Qc7 {[%clk 0:00:49]} 33. Qb1 {[%clk 0:02:20]}  b6 {[%clk 0:00:47]} 34. Nb5 {[%clk 0:02:20]}  Bxb5 {[%clk 0:00:42]} 35. Qxb5 {[%clk 0:02:21]}  Qxc3 {[%clk 0:00:42]} 36. Rd6 {[%clk 0:02:15]}  Nc4 {[%clk 0:00:38]} 37. Rc6 {[%clk 0:02:10]}  Rxc6 {[%clk 0:00:35]} 38. Qxc6 {[%clk 0:02:11]}  Nb2 {[%clk 0:00:23]} 39. Rd8+ {[%clk 0:02:07]}  Kg7 {[%clk 0:00:21]} 40. Qxc3 {[%clk 0:02:08]}  Bxc3 {[%clk 0:00:21]} 41. Bd5 {[%clk 0:02:08]}  Nd3 {[%clk 0:00:17]} 42. Rd7 {[%clk 0:02:06]}  Ne5 {[%clk 0:00:17]} 43. Rb7 {[%clk 0:02:06]}  Kh6 {[%clk 0:00:10]} 44. h3 {[%clk 0:02:04]}  b5 {[%clk 0:00:07]} 45. Rxb5 {[%clk 0:02:02]}  Kg7 {[%clk 0:00:06]} 46. Rb7 {[%clk 0:02:01]}  h5 {[%clk 0:00:06]} 47. f4 {[%clk 0:02:02]}  Nd3 {[%clk 0:00:06]} 48. Bxf7 {[%clk 0:01:58]}  Nc5 {[%clk 0:00:05]} 49. Rc7 {[%clk 0:01:57]}  Bb4 {[%clk 0:00:05]} 50. Bc4+ {[%clk 0:01:56]}  Kf6 {[%clk 0:00:05]} 51. Rf7# {[%clk 0:01:55]} 1-0


[Site "https://www.chess.com"]

[Event "Titled Tuesday Blitz April 12 Late 2022"]
[White "Naroditsky, Daniel"]
[Black "Pranav, V"]
[WhiteFideId "2026961"]
[BlackFideId "25060783"]
[WhiteElo "2608"]
[BlackElo "2349"]
[Result "1-0"]
[Round "06"]
[TimeControl "180+1"]
[Date "2022.04.12"]
[WhiteClock "0:01:05"]
[BlackClock "0:00:25"]

1. d4 {[%clk 0:03:00]}  Nf6 {[%clk 0:02:59]} 2. Nc3 {[%clk 0:02:51]}  d5 {[%clk 0:02:59]} 3. Bf4 {[%clk 0:02:51]}  c5 {[%clk 0:02:59]} 4. e3 {[%clk 0:02:51]}  cxd4 {[%clk 0:02:59]} 5. exd4 {[%clk 0:02:52]}  a6 {[%clk 0:03:00]} 6. Nf3 {[%clk 0:02:52]}  Bg4 {[%clk 0:03:00]} 7. h3 {[%clk 0:02:52]}  Bxf3 {[%clk 0:03:00]} 8. Qxf3 {[%clk 0:02:53]}  Nc6 {[%clk 0:03:00]} 9. O-O-O {[%clk 0:02:50]}  e6 {[%clk 0:02:58]} 10. g4 {[%clk 0:02:50]}  Qa5 {[%clk 0:02:42]} 11. Kb1 {[%clk 0:02:49]}  Rc8 {[%clk 0:02:40]} 12. g5 {[%clk 0:02:31]}  Nd7 {[%clk 0:02:31]} 13. h4 {[%clk 0:02:25]}  Bb4 {[%clk 0:02:23]} 14. Ne2 {[%clk 0:02:24]}  Be7 {[%clk 0:02:11]} 15. Nc1 {[%clk 0:02:12]}  b5 {[%clk 0:02:04]} 16. h5 {[%clk 0:02:05]}  Rf8 {[%clk 0:01:40]} 17. g6 {[%clk 0:01:59]}  fxg6 {[%clk 0:01:12]} 18. hxg6 {[%clk 0:02:00]}  h6 {[%clk 0:01:04]} 19. Qe3 {[%clk 0:01:50]}  Rf6 {[%clk 0:00:44]} 20. Bh3 {[%clk 0:01:32]}  Nf8 {[%clk 0:00:42]} 21. Nb3 {[%clk 0:01:21]}  Qb6 {[%clk 0:00:39]} 22. Nc5 {[%clk 0:01:12]}  Nxd4 {[%clk 0:00:30]} 23. Nb3 {[%clk 0:01:07]}  Rxf4 {[%clk 0:00:29]} 24. Qxf4 {[%clk 0:01:08]}  Nxb3 {[%clk 0:00:25]} 25. Qf7+ {[%clk 0:01:05]} 1-0


[Site "https://www.chess.com"]

[Event "Titled Tuesday Blitz April 12 Late 2022"]
[White "Olcayoz, Alper"]
[Black "Lin, Dachey"]
[WhiteFideId "6300405"]
[BlackFideId "2029650"]
[WhiteElo "2403"]
[BlackElo "2652"]
[Result "0-1"]
[Round "06"]
[TimeControl "180+1"]
[Date "2022.04.13"]
[WhiteClock "0:01:35"]
[BlackClock "0:02:14"]

1. d4 {[%clk 0:02:00]}  g6 {[%clk 0:02:55]} 2. e4 {[%clk 0:01:57]}  Bg7 {[%clk 0:02:55]} 3. Nc3 {[%clk 0:01:56]}  d5 {[%clk 0:02:55]} 4. exd5 {[%clk 0:01:54]}  Nf6 {[%clk 0:02:55]} 5. Bb5+ {[%clk 0:01:53]}  Nbd7 {[%clk 0:02:55]} 6. Nge2 {[%clk 0:01:52]}  O-O {[%clk 0:02:55]} 7. O-O {[%clk 0:01:50]}  a6 {[%clk 0:02:52]} 8. Bxd7 {[%clk 0:01:46]}  Qxd7 {[%clk 0:02:48]} 9. Bg5 {[%clk 0:01:45]}  Nxd5 {[%clk 0:02:34]} 10. Nxd5 {[%clk 0:01:44]}  Qxd5 {[%clk 0:02:35]} 11. Bxe7 {[%clk 0:01:44]}  Re8 {[%clk 0:02:35]} 12. Bb4 {[%clk 0:01:35]}  Qc4 {[%clk 0:02:14]} 0-1


[Site "https://www.chess.com"]

[Event "Titled Tuesday Blitz April 12 Late 2022"]
[White "Ozdemir, Serhan Berat"]
[Black "Karttunen, Mika"]
[WhiteFideId "6374611"]
[BlackFideId "502081"]
[WhiteElo "1920"]
[BlackElo "2343"]
[Result "0-1"]
[Round "06"]
[TimeControl "180+1"]
[Date "2022.04.13"]
[WhiteClock "0:01:23"]
[BlackClock "0:00:29"]

1. e4 {[%clk 0:02:59]}  c5 {[%clk 0:02:54]} 2. Nf3 {[%clk 0:02:59]}  Nc6 {[%clk 0:02:53]} 3. Bb5 {[%clk 0:02:58]}  g6 {[%clk 0:02:50]} 4. Bxc6 {[%clk 0:02:57]}  dxc6 {[%clk 0:02:51]} 5. O-O {[%clk 0:02:56]}  Bg7 {[%clk 0:02:50]} 6. h3 {[%clk 0:02:56]}  e5 {[%clk 0:02:50]} 7. d3 {[%clk 0:02:56]}  Ne7 {[%clk 0:02:47]} 8. a3 {[%clk 0:02:55]}  O-O {[%clk 0:02:46]} 9. b4 {[%clk 0:02:55]}  cxb4 {[%clk 0:02:41]} 10. axb4 {[%clk 0:02:56]}  b6 {[%clk 0:02:27]} 11. Nbd2 {[%clk 0:02:55]}  Be6 {[%clk 0:02:27]} 12. Bb2 {[%clk 0:02:53]}  Qc7 {[%clk 0:02:22]} 13. Ra3 {[%clk 0:02:50]}  h6 {[%clk 0:02:05]} 14. Qa1 {[%clk 0:02:49]}  f6 {[%clk 0:02:00]} 15. d4 {[%clk 0:02:42]}  exd4 {[%clk 0:01:53]} 16. Nxd4 {[%clk 0:02:43]}  Bf7 {[%clk 0:01:53]} 17. Re1 {[%clk 0:02:24]}  c5 {[%clk 0:01:31]} 18. bxc5 {[%clk 0:02:12]}  bxc5 {[%clk 0:01:30]} 19. Nb5 {[%clk 0:02:07]}  Qd7 {[%clk 0:01:29]} 20. Bxf6 {[%clk 0:01:42]}  Bxf6 {[%clk 0:01:23]} 21. Qxf6 {[%clk 0:01:43]}  Qxd2 {[%clk 0:00:52]} 22. Rae3 {[%clk 0:01:43]}  Bc4 {[%clk 0:00:46]} 23. Qxe7 {[%clk 0:01:38]}  Qxf2+ {[%clk 0:00:46]} 24. Kh1 {[%clk 0:01:34]}  Bxb5 {[%clk 0:00:46]} 25. Qxc5 {[%clk 0:01:32]}  Bf1 {[%clk 0:00:40]} 26. Qd5+ {[%clk 0:01:27]}  Kh8 {[%clk 0:00:33]} 27. Qd4+ {[%clk 0:01:25]}  Rf6 {[%clk 0:00:29]} 28. Rg3 {[%clk 0:01:23]}  Qxd4 {[%clk 0:00:29]} 0-1


[Site "https://www.chess.com"]

[Event "Titled Tuesday Blitz April 12 Late 2022"]
[White "Papasimakopoulos, Alexandros"]
[Black "Shapiro, David"]
[WhiteFideId "4244125"]
[BlackFideId "24133523"]
[WhiteElo "2340"]
[BlackElo "2320"]
[Result "1-0"]
[Round "06"]
[TimeControl "180+1"]
[Date "2022.04.12"]
[WhiteClock "0:02:30"]
[BlackClock "0:02:26"]

1. d4 {[%clk 0:03:00]}  d5 {[%clk 0:02:57]} 2. c4 {[%clk 0:03:00]}  c6 {[%clk 0:02:52]} 3. cxd5 {[%clk 0:03:00]}  cxd5 {[%clk 0:02:53]} 4. Bf4 {[%clk 0:03:00]}  Nc6 {[%clk 0:02:52]} 5. Nc3 {[%clk 0:03:01]}  Nf6 {[%clk 0:02:49]} 6. e3 {[%clk 0:03:01]}  a6 {[%clk 0:02:48]} 7. Bd3 {[%clk 0:03:00]}  Bg4 {[%clk 0:02:48]} 8. Nge2 {[%clk 0:03:00]}  e6 {[%clk 0:02:47]} 9. O-O {[%clk 0:03:01]}  Bd6 {[%clk 0:02:47]} 10. f3 {[%clk 0:03:01]}  Bh5 {[%clk 0:02:46]} 11. Rc1 {[%clk 0:03:01]}  O-O {[%clk 0:02:45]} 12. Na4 {[%clk 0:03:02]}  Rc8 {[%clk 0:02:40]} 13. Nc5 {[%clk 0:03:01]}  Qe7 {[%clk 0:02:34]} 14. Bxd6 {[%clk 0:02:55]}  Qxd6 {[%clk 0:02:32]} 15. Nxb7 {[%clk 0:02:55]}  Qb4 {[%clk 0:02:32]} 16. Nc5 {[%clk 0:02:48]}  Qxb2 {[%clk 0:02:31]} 17. Bxa6 {[%clk 0:02:47]}  Ra8 {[%clk 0:02:26]} 18. Na4 {[%clk 0:02:30]} 1-0


[Site "https://www.chess.com"]

[Event "Titled Tuesday Blitz April 12 Late 2022"]
[White "Papp, Levente"]
[Black "Gracia Alvarez, Gerardo Antonio"]
[WhiteFideId "751243"]
[BlackFideId "5109124"]
[WhiteElo "2308"]
[BlackElo "2139"]
[Result "1-0"]
[Round "06"]
[TimeControl "180+1"]
[Date "2022.04.13"]
[WhiteClock "0:00:12"]
[BlackClock "0:00:04"]

1. c4 {[%clk 0:03:00]}  c5 {[%clk 0:02:59]} 2. g3 {[%clk 0:03:00]}  Nc6 {[%clk 0:02:59]} 3. Bg2 {[%clk 0:03:01]}  g6 {[%clk 0:02:59]} 4. Nc3 {[%clk 0:03:01]}  Bg7 {[%clk 0:03:00]} 5. e4 {[%clk 0:03:02]}  a6 {[%clk 0:02:54]} 6. Nge2 {[%clk 0:03:01]}  b5 {[%clk 0:02:54]} 7. d3 {[%clk 0:02:41]}  Rb8 {[%clk 0:02:51]} 8. O-O {[%clk 0:02:39]}  d6 {[%clk 0:02:48]} 9. Rb1 {[%clk 0:02:30]}  e6 {[%clk 0:02:46]} 10. a3 {[%clk 0:02:29]}  Nge7 {[%clk 0:02:34]} 11. cxb5 {[%clk 0:02:29]}  axb5 {[%clk 0:02:34]} 12. b4 {[%clk 0:02:30]}  cxb4 {[%clk 0:02:32]} 13. axb4 {[%clk 0:02:31]}  O-O {[%clk 0:02:28]} 14. d4 {[%clk 0:02:31]}  d5 {[%clk 0:02:27]} 15. e5 {[%clk 0:02:26]}  Qb6 {[%clk 0:02:17]} 16. Qd3 {[%clk 0:01:55]}  Bd7 {[%clk 0:02:14]} 17. Be3 {[%clk 0:01:40]}  Ra8 {[%clk 0:02:04]} 18. Rfe1 {[%clk 0:01:22]}  Rfb8 {[%clk 0:01:47]} 19. Qc2 {[%clk 0:01:06]}  Rc8 {[%clk 0:01:40]} 20. Qb2 {[%clk 0:01:05]}  Nf5 {[%clk 0:01:27]} 21. Red1 {[%clk 0:00:58]}  f6 {[%clk 0:00:45]} 22. exf6 {[%clk 0:00:43]}  Bxf6 {[%clk 0:00:41]} 23. Qd2 {[%clk 0:00:34]}  Kh8 {[%clk 0:00:37]} 24. Bg5 {[%clk 0:00:29]}  Bg7 {[%clk 0:00:34]} 25. Be3 {[%clk 0:00:23]}  Ra3 {[%clk 0:00:23]} 26. Qd3 {[%clk 0:00:21]}  Nd6 {[%clk 0:00:20]} 27. Qc2 {[%clk 0:00:11]}  Nc4 {[%clk 0:00:16]} 28. Nc1 {[%clk 0:00:11]}  Ra7 {[%clk 0:00:15]} 29. Nb3 {[%clk 0:00:11]}  Na3 {[%clk 0:00:15]} 30. Qe2 {[%clk 0:00:10]}  Nxb1 {[%clk 0:00:15]} 31. Rxb1 {[%clk 0:00:11]}  Rca8 {[%clk 0:00:12]} 32. Nc5 {[%clk 0:00:11]}  Ra1 {[%clk 0:00:11]} 33. Nxd7 {[%clk 0:00:11]}  Rxb1+ {[%clk 0:00:10]} 34. Nxb1 {[%clk 0:00:12]}  Qc7 {[%clk 0:00:10]} 35. Nc5 {[%clk 0:00:12]}  Nxb4 {[%clk 0:00:10]} 36. Bf1 {[%clk 0:00:12]}  Ra1 {[%clk 0:00:08]} 37. Qb2 {[%clk 0:00:12]}  Ra8 {[%clk 0:00:04]} 38. Qxb4 {[%clk 0:00:12]}  e5 {[%clk 0:00:04]} 39. Ne6 {[%clk 0:00:11]}  Qd7 {[%clk 0:00:03]} 40. Nxg7 {[%clk 0:00:11]}  Qxg7 {[%clk 0:00:04]} 41. dxe5 {[%clk 0:00:12]} 1-0


[Site "https://www.chess.com"]